fUST/lending_fUST_20250904
["ID","MTS","AMOUNT","RATE_DAILY","PERIOD"]
[383551923,1756987840463,-1805.96,0.00013972,2]
[383551924,1756987840473,-1326.35,0.00013972,2]
[383551925,1756987840482,-480.0,0.00013972,2]
[383551926,1756987840492,-222.91,0.00013972,2]
[383551927,1756987840502,-480.0,0.00013972,2]
[383551928,1756987840513,-2301.37,0.00013972,2]
[383551929,1756987840523,-480.0,0.00013972,2]
[383551930,1756987840532,-619.89,0.00013972,2]
[383551931,1756987840541,-480.0,0.00013972,2]
[383551932,1756987840551,-498.51,0.00013972,2]
[383551933,1756987840561,-480.0,0.00013972,2]
[383551934,1756987840570,-978.75,0.00013972,2]
[383551935,1756987840579,-480.0,0.00013972,2]
[383551936,1756987840589,-480.0,0.00013972,2]
[383551937,1756987840599,-480.0,0.00013972,2]
[383551938,1756987840608,-480.0,0.00013972,2]
[383551939,1756987840617,-480.0,0.00013972,2]
[383551940,1756987840626,-480.0,0.00013972,2]
[383551941,1756987840637,-480.0,0.00013972,2]
[383551942,1756987840647,-480.0,0.00013972,2]
[383551943,1756987840656,-480.0,0.00013972,2]
[383551944,1756987840666,-480.0,0.00013972,2]
[383551945,1756987840675,-1183.77,0.00013972,2]
[383551946,1756987840685,-480.0,0.00013972,2]
[383551947,1756987840695,-480.0,0.00013972,2]
[383551948,1756987840704,-480.0,0.00013972,2]
[383551949,1756987840713,-657.5,0.00013972,2]
[383551950,1756987840723,-480.0,0.00013972,2]
[383551951,1756987840732,-480.0,0.00013972,2]
[383551952,1756987840742,-1645.06,0.00013972,2]
[383551953,1756987840752,-930.76,0.00013972,2]
[383551954,1756987840864,-1008.12,0.00013972,2]
[383551955,1756987840873,-480.0,0.00013972,2]
[383551956,1756987840883,-480.0,0.00013972,2]
[383551957,1756987840895,-641.71,0.00013972,2]
[383551958,1756987840905,-480.0,0.00013972,2]
[383551959,1756987840914,-480.0,0.00013972,2]
[383551960,1756987840925,-480.0,0.00013972,2]
[383551961,1756987840935,-480.0,0.00013972,2]
[383551962,1756987840944,-480.0,0.00013972,2]
[383551963,1756987840953,-480.0,0.00013972,2]
[383551964,1756987840962,-1734.8,0.00013972,2]
[383551965,1756987840974,-480.0,0.00013972,2]
[383551966,1756987840984,-480.0,0.00013972,2]
[383551967,1756987840993,-480.0,0.00013972,2]
[383551968,1756987841003,-480.0,0.00013972,2]
[383551969,1756987841012,-480.0,0.00013972,2]
[383551970,1756987841021,-480.0,0.00013972,2]
[383551971,1756987841031,-334.75606356,0.00013972,2]
[383551972,1756987841040,-480.0,0.00013972,2]
[383551973,1756987841050,-480.0,0.00013972,2]
[383551974,1756987841059,-480.0,0.00013972,2]
[383551975,1756987841068,-480.0,0.00013972,2]
[383551976,1756987841078,-480.0,0.00013972,2]
[383551977,1756987841087,-480.0,0.00013972,2]
[383551978,1756987841097,-480.0,0.00013972,2]
[383551979,1756987841108,-418.67872319,0.00013972,2]
[383551980,1756987841118,-480.0,0.00013972,2]
[383551981,1756987841130,-480.0,0.00013972,2]
[383551982,1756987841139,-519.6,0.00013972,2]
[383551983,1756987841149,-481.26,0.00013972,2]
[383551984,1756987841158,-480.0,0.00013972,2]
[383551985,1756987841168,-591.22,0.00013972,2]
[383551986,1756987841178,-480.0,0.00013972,2]
[383551987,1756987841188,-480.0,0.00013972,2]
[383551988,1756987841197,-480.0,0.00013972,2]
[383551989,1756987841207,-480.0,0.00013972,2]
[383551990,1756987841217,-480.0,0.00013972,2]
[383551991,1756987841227,-480.0,0.00013972,2]
[383551992,1756987841236,-3856.02,0.00013972,2]
[383551993,1756987841245,-480.0,0.00013972,2]
[383551994,1756987841255,-925.48,0.00013972,2]
[383551995,1756987841264,-480.0,0.00013972,2]
[383551996,1756987841274,-1654.99,0.00013972,2]
[383551997,1756987841283,-480.0,0.00013972,2]
[383551998,1756987841293,-1162.8,0.00013972,2]
[383551999,1756987841303,-1921.18,0.00013972,2]
[383552000,1756987841312,-480.0,0.00013972,2]
[383552001,1756987841322,-1339.08,0.00013972,2]
[383552002,1756987841331,-452.18,0.00013972,2]
[383552003,1756987841341,-489.6,0.00013972,2]
[383552004,1756987841350,-886.53,0.00013972,2]
[383552005,1756987841359,-622.86,0.00013972,2]
[383552006,1756987841368,-480.0,0.00013972,2]
[383552007,1756987841378,-289.09,0.00013972,2]
[383552008,1756987841387,-592.2,0.00013972,2]
[383552009,1756987841397,-2989.31931246,0.00014,2]
[383552010,1756987841407,-208.766,0.00014031,2]
[383552011,1756987841416,-250.0,0.00014031,2]
[383552012,1756987841425,-224.481,0.00014031,2]
[383552013,1756987841435,-250.0,0.00014031,2]
[383552014,1756987841444,-250.648,0.00014031,2]
[383552015,1756987841455,-249.1,0.00014031,2]
[383552016,1756987841464,-262.104,0.00014031,2]
[383552017,1756987841474,-246.0,0.00014031,2]
[383552018,1756987841483,-221.273,0.00014031,2]
[383552019,1756987841493,-3000.0,0.0001404,2]
[383552020,1756987841503,-480.0,0.00014246,2]
[383552021,1756987841514,-480.0,0.00014246,2]
[383552022,1756987841524,-480.0,0.00014246,2]
[383552023,1756987841534,-480.0,0.00014246,2]
[383552024,1756987841544,-245.57800204,0.00014246,2]
[383552025,1756987841553,-480.0,0.00014246,2]
[383552026,1756987841563,-480.0,0.00014246,2]
[383552027,1756987841572,-480.0,0.00014246,2]
[383552028,1756987841581,-480.0,0.00014246,2]
[383552029,1756987841591,-480.0,0.00014246,2]
[383552030,1756987841600,-480.0,0.00014246,2]
[383552031,1756987841610,-709.57,0.00014246,2]
[383552032,1756987841619,-480.0,0.00014246,2]
[383552033,1756987841629,-480.0,0.00014246,2]
[383552034,1756987841638,-480.0,0.00014246,2]
[383552035,1756987841647,-480.0,0.00014246,2]
[383552036,1756987841657,-480.0,0.00014246,2]
[383552037,1756987841667,-594.39,0.00014246,2]
[383552038,1756987841676,-480.0,0.00014246,2]
[383552039,1756987841686,-480.0,0.00014246,2]
[383552040,1756987841695,-480.0,0.00014246,2]
[383552041,1756987841706,-2140.86,0.00014246,2]
[383552042,1756987841715,-480.0,0.00014246,2]
[383552043,1756987841725,-480.0,0.00014246,2]
[383552044,1756987841734,-480.0,0.00014246,2]
[383552045,1756987841744,-480.0,0.00014246,2]
[383552046,1756987841753,-259.43731409,0.00014246,2]
[383552047,1756987841762,-480.0,0.00014246,2]
[383552048,1756987841771,-480.0,0.00014246,2]
[383552049,1756987841781,-480.0,0.00014246,2]
[383552050,1756987841790,-480.0,0.00014246,2]
[383552051,1756987841801,-480.0,0.00014246,2]
[383552052,1756987841810,-480.0,0.00014246,2]
[383552053,1756987841820,-480.0,0.00014246,2]
[383552054,1756987841830,-480.0,0.00014246,2]
[383552055,1756987841840,-480.0,0.00014246,2]
[383552056,1756987841850,-480.0,0.00014246,2]
[383552057,1756987841859,-480.0,0.00014246,2]
[383552058,1756987841869,-939.11,0.00014246,2]
[383552059,1756987841879,-480.0,0.00014246,2]
[383552060,1756987841889,-480.0,0.00014246,2]
[383552061,1756987841902,-480.0,0.00014246,2]
[383552062,1756987841912,-480.0,0.00014246,2]
[383552063,1756987841921,-480.0,0.00014246,2]
[383552064,1756987841931,-532.41,0.00014246,2]
[383552065,1756987841941,-480.0,0.00014246,2]
[383552066,1756987841951,-490.82,0.00014246,2]
[383552067,1756987841960,-480.0,0.00014246,2]
[383552068,1756987841972,-1524.15,0.00014246,2]
[383552069,1756987841982,-480.0,0.00014246,2]
[383552070,1756987841992,-480.0,0.00014246,2]
[383552071,1756987842001,-599.43,0.00014246,2]
[383552072,1756987842011,-1326.35,0.00014246,2]
[383552073,1756987842021,-1805.96,0.00014246,2]
[383552074,1756987842030,-480.0,0.00014246,2]
[383552075,1756987842040,-480.0,0.00014246,2]
[383552076,1756987842050,-2301.37,0.00014246,2]
[383552077,1756987842059,-210.78,0.00014246,2]
[383552078,1756987842069,-224.43782424,0.00014246,2]
[383552079,1756987842080,-498.51,0.00014246,2]
[383552080,1756987842090,-480.0,0.00014246,2]
[383552081,1756987842099,-978.75,0.00014246,2]
[383552082,1756987842109,-480.0,0.00014246,2]
[383552083,1756987842119,-480.0,0.00014246,2]
[383552084,1756987842129,-480.0,0.00014246,2]
[383552085,1756987842138,-480.0,0.00014246,2]
[383552086,1756987842148,-480.0,0.00014246,2]
[383552087,1756987842157,-480.0,0.00014246,2]
[383552088,1756987842167,-508.01642162,0.00014246,2]
[383552091,1756987842176,-480.0,0.00014246,2]
[383552093,1756987842186,-480.0,0.00014246,2]
[383552094,1756987842196,-480.0,0.00014246,2]
[383552095,1756987842205,-1183.77,0.00014246,2]
[383552096,1756987842215,-480.0,0.00014246,2]
[383552097,1756987842224,-480.0,0.00014246,2]
[383552098,1756987842233,-480.0,0.00014246,2]
[383552099,1756987842243,-657.5,0.00014246,2]
[383552100,1756987842253,-480.0,0.00014246,2]
[383552101,1756987842262,-480.0,0.00014246,2]
[383552102,1756987842272,-1645.06,0.00014246,2]
[383552103,1756987842281,-930.76,0.00014246,2]
[383552104,1756987842290,-1008.12,0.00014246,2]
[383552105,1756987842302,-480.0,0.00014246,2]
[383552106,1756987842312,-480.0,0.00014246,2]
[383552107,1756987842322,-641.71,0.00014246,2]
[383552108,1756987842332,-480.0,0.00014246,2]
[383552109,1756987842341,-512.87,0.00014246,2]
[383552110,1756987842351,-480.0,0.00014246,2]
[383552111,1756987842360,-480.0,0.00014246,2]
[383552113,1756987842369,-480.0,0.00014246,2]
[383552115,1756987842379,-480.0,0.00014246,2]
[383552116,1756987842388,-1734.8,0.00014246,2]
[383552118,1756987842398,-480.0,0.00014246,2]
[383552120,1756987842407,-480.0,0.00014246,2]
[383552122,1756987842416,-480.0,0.00014246,2]
[383552124,1756987842426,-480.0,0.00014246,2]
[383552126,1756987842435,-480.0,0.00014246,2]
[383552128,1756987842444,-480.0,0.00014246,2]
[383552129,1756987842454,-480.0,0.00014246,2]
[383552132,1756987842463,-480.0,0.00014246,2]
[383552134,1756987842472,-480.0,0.00014246,2]
[383552136,1756987842491,-480.0,0.00014246,2]
[383552138,1756987842500,-480.0,0.00014246,2]
[383552140,1756987842510,-480.0,0.00014246,2]
[383552142,1756987842519,-480.0,0.00014246,2]
[383552144,1756987842529,-480.0,0.00014246,2]
[383552146,1756987842539,-519.6,0.00014246,2]
[383552148,1756987842550,-481.26,0.00014246,2]
[383552149,1756987842559,-480.0,0.00014246,2]
[383552150,1756987842568,-591.22,0.00014246,2]
[383552152,1756987842577,-480.0,0.00014246,2]
[383552153,1756987842586,-480.0,0.00014246,2]
[383552154,1756987842595,-480.0,0.00014246,2]
[383552155,1756987842603,-480.0,0.00014246,2]
[383552156,1756987842612,-480.0,0.00014246,2]
[383552157,1756987842621,-480.0,0.00014246,2]
[383552158,1756987842631,-3856.02,0.00014246,2]
[383552159,1756987842641,-480.0,0.00014246,2]
[383552160,1756987842650,-925.48,0.00014246,2]
[383552161,1756987842659,-480.0,0.00014246,2]
[383552162,1756987842668,-1654.99,0.00014246,2]
[383552163,1756987842678,-480.0,0.00014246,2]
[383552164,1756987842687,-1162.8,0.00014246,2]
[383552166,1756987842697,-1921.18,0.00014246,2]
[383552169,1756987842706,-480.0,0.00014246,2]
[383552172,1756987842715,-1339.08,0.00014246,2]
[383552174,1756987842724,-489.6,0.00014246,2]
[383552176,1756987842735,-886.53,0.00014246,2]
[383552178,1756987842744,-622.86,0.00014246,2]
[383552180,1756987842753,-480.0,0.00014246,2]
[383552182,1756987842762,-592.2,0.00014246,2]
[383552184,1756987842771,-187.61848635,0.00014496,2]
[383552186,1756987842781,-500.0,0.00014516,2]
[383552188,1756987842790,-480.0,0.0001452,2]
[383552190,1756987842799,-480.0,0.0001452,2]
[383552192,1756987842809,-480.0,0.0001452,2]
[383552194,1756987842818,-480.0,0.0001452,2]
[383552196,1756987842828,-480.0,0.0001452,2]
[383552198,1756987842837,-532.57918084,0.0001452,2]
[383552200,1756987842846,-480.0,0.0001452,2]
[383552202,1756987842855,-480.0,0.0001452,2]
[383552203,1756987842865,-480.0,0.0001452,2]
[383552204,1756987842874,-480.0,0.0001452,2]
[383552205,1756987842883,-709.57,0.0001452,2]
[383552206,1756987842895,-480.0,0.0001452,2]
[383552207,1756987842905,-480.0,0.0001452,2]
[383552208,1756987842914,-480.0,0.0001452,2]
[383552209,1756987842923,-480.0,0.0001452,2]
[383552210,1756987842934,-480.0,0.0001452,2]
[383552211,1756987842944,-594.39,0.0001452,2]
[383552212,1756987842954,-480.0,0.0001452,2]
[383552213,1756987842963,-480.0,0.0001452,2]
[383552215,1756987842976,-480.0,0.0001452,2]
[383552216,1756987842985,-2140.86,0.0001452,2]
[383552217,1756987842995,-480.0,0.0001452,2]
[383552218,1756987843006,-480.0,0.0001452,2]
[383552219,1756987843015,-480.0,0.0001452,2]
[383552220,1756987843025,-480.0,0.0001452,2]
[383552221,1756987843149,-480.0,0.0001452,2]
[383552222,1756987843160,-480.0,0.0001452,2]
[383552223,1756987843170,-480.0,0.0001452,2]
[383552224,1756987843179,-480.0,0.0001452,2]
[383552225,1756987843189,-480.0,0.0001452,2]
[383552226,1756987843199,-480.0,0.0001452,2]
[383552227,1756987843209,-391.26846745,0.0001452,2]
[383552228,1756987843218,-480.0,0.0001452,2]
[383552229,1756987843228,-480.0,0.0001452,2]
[383552230,1756987843238,-480.0,0.0001452,2]
[383552231,1756987843247,-939.11,0.0001452,2]
[383552232,1756987843257,-480.0,0.0001452,2]
[383552233,1756987843267,-480.0,0.0001452,2]
[383552234,1756987843276,-480.0,0.0001452,2]
[383552235,1756987843285,-480.0,0.0001452,2]
[383552236,1756987843296,-480.0,0.0001452,2]
[383552237,1756987843305,-532.41,0.0001452,2]
[383552238,1756987843314,-480.0,0.0001452,2]
[383552239,1756987843324,-490.82,0.0001452,2]
[383552240,1756987843333,-480.0,0.0001452,2]
[383552241,1756987843342,-1524.15,0.0001452,2]
[383552242,1756987843352,-480.0,0.0001452,2]
[383552243,1756987843361,-480.0,0.0001452,2]
[383552244,1756987843371,-599.43,0.0001452,2]
[383552245,1756987843380,-1326.35,0.0001452,2]
[383552246,1756987843389,-1805.96,0.0001452,2]
[383552247,1756987843399,-480.0,0.0001452,2]
[383552248,1756987843408,-480.0,0.0001452,2]
[383552249,1756987843418,-2301.37,0.0001452,2]
[383552250,1756987843427,-498.51,0.0001452,2]
[383552251,1756987843437,-480.0,0.0001452,2]
[383552252,1756987843446,-978.75,0.0001452,2]
[383552253,1756987843456,-480.0,0.0001452,2]
[383552254,1756987843466,-480.0,0.0001452,2]
[383552255,1756987843476,-480.0,0.0001452,2]
[383552257,1756987843485,-480.0,0.0001452,2]
[383552259,1756987843494,-480.0,0.0001452,2]
[383552261,1756987843503,-480.0,0.0001452,2]
[383552262,1756987843513,-480.0,0.0001452,2]
[383552264,1756987843522,-403.79736064,0.0001452,2]
[383552265,1756987843531,-480.0,0.0001452,2]
[383552266,1756987843541,-1183.77,0.0001452,2]
[383552267,1756987843552,-480.0,0.0001452,2]
[383552268,1756987843563,-480.0,0.0001452,2]
[383552269,1756987843573,-480.0,0.0001452,2]
[383552270,1756987843583,-657.5,0.0001452,2]
[383552271,1756987843593,-480.0,0.0001452,2]
[383552272,1756987843603,-480.0,0.0001452,2]
[383552273,1756987843613,-1645.06,0.0001452,2]
[383552274,1756987843623,-930.76,0.0001452,2]
[383552275,1756987843632,-1008.12,0.0001452,2]
[383552276,1756987843642,-480.0,0.0001452,2]
[383552277,1756987843651,-480.0,0.0001452,2]
[383552278,1756987843661,-641.71,0.0001452,2]
[383552279,1756987843671,-480.0,0.0001452,2]
[383552280,1756987843680,-480.0,0.0001452,2]
[383552281,1756987843689,-480.0,0.0001452,2]
[383552282,1756987843699,-480.0,0.0001452,2]
[383552283,1756987843708,-480.0,0.0001452,2]
[383552284,1756987843718,-1734.8,0.0001452,2]
[383552285,1756987843727,-480.0,0.0001452,2]
[383552286,1756987843737,-480.0,0.0001452,2]
[383552287,1756987843747,-480.0,0.0001452,2]
[383552288,1756987843757,-480.0,0.0001452,2]
[383552289,1756987843766,-480.0,0.0001452,2]
[383552290,1756987843776,-480.0,0.0001452,2]
[383552291,1756987843785,-480.0,0.0001452,2]
[383552292,1756987843797,-198.94,0.0001452,2]
[383552293,1756987843806,-480.0,0.0001452,2]
[383552294,1756987843816,-480.0,0.0001452,2]
[383552295,1756987843825,-480.0,0.0001452,2]
[383552296,1756987843835,-480.0,0.0001452,2]
[383552297,1756987843845,-480.0,0.0001452,2]
[383552298,1756987843854,-480.0,0.0001452,2]
[383552299,1756987843863,-519.6,0.0001452,2]
[383552300,1756987843873,-481.26,0.0001452,2]
[383552301,1756987843882,-480.0,0.0001452,2]
[383552302,1756987843893,-591.22,0.0001452,2]
[383552303,1756987843905,-480.0,0.0001452,2]
[383552304,1756987843915,-480.0,0.0001452,2]
[383552305,1756987843924,-480.0,0.0001452,2]
[383552306,1756987843935,-480.0,0.0001452,2]
[383552307,1756987843944,-480.0,0.0001452,2]
[383552308,1756987843954,-480.0,0.0001452,2]
[383552309,1756987843963,-3856.02,0.0001452,2]
[383552310,1756987843974,-421.04803309,0.0001452,2]
[383552311,1756987843984,-925.48,0.0001452,2]
[383552312,1756987843993,-480.0,0.0001452,2]
[383552313,1756987844003,-1654.99,0.0001452,2]
[383552314,1756987844012,-480.0,0.0001452,2]
[383552315,1756987844022,-1162.8,0.0001452,2]
[383552316,1756987844031,-1921.18,0.0001452,2]
[383552317,1756987844041,-480.0,0.0001452,2]
[383552318,1756987844052,-1339.08,0.0001452,2]
[383552319,1756987844061,-489.6,0.0001452,2]
[383552320,1756987844071,-886.53,0.0001452,2]
[383552321,1756987844080,-622.86,0.0001452,2]
[383552322,1756987844089,-480.0,0.0001452,2]
[383552323,1756987844099,-592.2,0.0001452,2]
[383552324,1756987844109,-406.5,0.00014573,2]
[383552325,1756987844118,-336.351,0.000146,2]
[383552326,1756987844128,-500.0,0.00014673,2]
[383552327,1756987844137,-500.0,0.00014673,2]
[383552328,1756987844147,-609.30197957,0.00014673,2]
[383552329,1756987844158,-500.0,0.00014673,2]
[383552330,1756987844168,-501.82497982,0.00014673,2]
[383552331,1756987844177,-500.0,0.00014673,2]
[383552332,1756987844187,-501.38118317,0.00014673,2]
[383552333,1756987844197,-500.0,0.00014673,2]
[383552334,1756987844207,-335.41328946,0.00014673,2]
[383552335,1756987844217,-500.0,0.00014673,2]
[383552336,1756987844227,-500.0,0.00014673,2]
[383552337,1756987844237,-500.0,0.00014673,2]
[383552338,1756987844246,-500.0,0.00014673,2]
[383552339,1756987844256,-500.0,0.00014673,2]
[383552340,1756987844266,-248.37487353,0.00014673,2]
[383552341,1756987844275,-151.0,0.00014673,2]
[383552342,1756987844286,-420.0,0.00014674,2]
[383552343,1756987844296,-480.0,0.00014675,2]
[383552344,1756987844306,-174.2,0.00014687,2]
[383552345,1756987844315,-500.0,0.0001469,2]
[383552346,1756987844326,-500.0,0.0001469,2]
[383552347,1756987844337,-151.0,0.0001469,2]
[383552348,1756987844346,-65720.7001766,0.000147,2]
[383552349,1756987844841,-794.87521834,0.00013289,2]
[383552350,1756987844852,-12240.90584742,0.00013289,2]
[383552351,1756987844862,-480.0,0.00013698,2]
[383552352,1756987844872,-112470.21251468,0.000147,2]
[383552383,1756987846046,-480.0,0.00013698,2]
[383552384,1756987846056,-480.0,0.00013698,2]
[383552385,1756987846067,-480.0,0.00013972,2]
[383552386,1756987846076,-480.0,0.00013972,2]
[383552387,1756987846086,-331.58722793,0.00014,2]
[383552388,1756987846095,-480.0,0.00014246,2]
[383552389,1756987846105,-60894.73610713,0.000147,2]
[383552390,1756987846119,-709.06929334,0.000147,2]
[383552414,1756988748827,3215.18,0.00012329,2]
[383552415,1756988754236,183.65713041,0.00013423,2]
[383552416,1756988759535,2679.32,0.00012329,2]
[383552419,1756988769951,2232.77,0.00012329,2]
[383552427,1756988780408,1860.64,0.00012329,2]
[383552428,1756988790824,1550.53,0.00012329,2]
[383552429,1756988801239,1292.11,0.00012329,2]
[383552430,1756988811627,1076.76,0.00012329,2]
[383552431,1756988822062,897.3,0.00012329,2]
[383552432,1756988832451,747.75,0.00012329,2]
[383552433,1756988843524,623.12,0.00012329,2]
[383552434,1756988854404,519.27,0.00012329,2]
[383552436,1756988864834,432.72,0.00012329,2]
[383552437,1756988875307,360.6,0.00012329,2]
[383552438,1756988885964,300.5,0.00012329,2]
[383552439,1756988893592,200.0,0.000135,2]
[383552440,1756988896422,250.42,0.00012329,2]
[383552441,1756988907085,208.68,0.00012329,2]
[383552442,1756988917506,173.9,0.00012329,2]
[383552443,1756988920373,150.0,0.00025,30]
[383552444,1756988927930,869.55,0.00012329,2]
[383552470,1756989032124,-2700.0,0.00013559,2]
[383552472,1756989032134,-2652.47183299,0.00013597,2]
[383552474,1756989032144,-1200.0,0.00013694,2]
[383552476,1756989032153,-300.0,0.00013695,2]
[383552478,1756989032162,-300.0,0.00013695,2]
[383552480,1756989032172,-300.0,0.00013695,2]
[383552482,1756989032181,-300.0,0.00013695,2]
[383552484,1756989032190,-300.0,0.00013695,2]
[383552486,1756989032200,-1200.0,0.00013696,2]
[383552488,1756989032210,-998.40255591,0.00013697,2]
[383552490,1756989032219,-33262.5257118,0.00013697,2]
[383552514,1756989034569,2700.0,0.00013423,2]
[383552912,1756989046159,-16737.4742882,0.00013697,2]
[383552914,1756989046170,-328.25918338,0.00013697,2]
[383552916,1756989046179,-500.0,0.00013697,2]
[383552918,1756989046189,-500.0,0.00013697,2]
[383552920,1756989046199,-500.0,0.00013697,2]
[383552923,1756989046208,-500.0,0.00013697,2]
[383552925,1756989046217,-350.98260716,0.00013697,2]
[383552927,1756989046227,-526.08489947,0.00013697,2]
[383552928,1756989046236,-500.0,0.00013697,2]
[383552930,1756989046246,-500.0,0.00013697,2]
[383552933,1756989046255,-435.87697791,0.00013697,2]
[383552935,1756989046267,-500.0,0.00013697,2]
[383552937,1756989046279,-500.0,0.00013697,2]
[383552938,1756989046293,-500.0,0.00013697,2]
[383552941,1756989046303,-513.5518697,0.00013697,2]
[383552943,1756989046314,-487.24844673,0.00013697,2]
[383552945,1756989046324,-255.77057921,0.00013697,2]
[383552947,1756989046335,-500.0,0.00013697,2]
[383552949,1756989046345,-480.0,0.00013698,2]
[383552951,1756989046355,-480.0,0.00013698,2]
[383552953,1756989046366,-482.0,0.00013698,2]
[383552955,1756989046375,-645.5,0.00013698,2]
[383552957,1756989046385,-480.0,0.00013698,2]
[383552959,1756989046394,-480.0,0.00013698,2]
[383552961,1756989046404,-480.0,0.00013698,2]
[383552963,1756989046413,-480.0,0.00013698,2]
[383552965,1756989046423,-480.0,0.00013698,2]
[383552967,1756989046432,-480.0,0.00013698,2]
[383552969,1756989046442,-480.0,0.00013698,2]
[383552971,1756989046450,-543.45,0.00013698,2]
[383552973,1756989046460,-480.0,0.00013698,2]
[383552975,1756989046470,-480.0,0.00013698,2]
[383552977,1756989046479,-480.0,0.00013698,2]
[383552979,1756989046488,-480.0,0.00013698,2]
[383552981,1756989046498,-1887.79,0.00013698,2]
[383552983,1756989046507,-480.0,0.00013698,2]
[383552985,1756989046516,-480.0,0.00013698,2]
[383552986,1756989046525,-480.0,0.00013698,2]
[383552987,1756989046536,-480.0,0.00013698,2]
[383552988,1756989046548,-480.0,0.00013698,2]
[383552989,1756989046557,-480.0,0.00013698,2]
[383552990,1756989046566,-480.0,0.00013698,2]
[383552991,1756989046576,-355.4028545,0.00013698,2]
[383552992,1756989046585,-360.62354022,0.00013698,2]
[383552993,1756989046594,-480.0,0.00013698,2]
[383552994,1756989046604,-570.39137897,0.00013698,2]
[383552995,1756989046613,-480.0,0.00013698,2]
[383552996,1756989046623,-480.0,0.00013698,2]
[383552997,1756989046632,-480.0,0.00013698,2]
[383552998,1756989046642,-480.0,0.00013698,2]
[383552999,1756989046652,-480.0,0.00013698,2]
[383553000,1756989046661,-480.0,0.00013698,2]
[383553001,1756989046671,-480.0,0.00013698,2]
[383553002,1756989046681,-480.0,0.00013698,2]
[383553003,1756989046690,-480.0,0.00013698,2]
[383553004,1756989046700,-480.0,0.00013698,2]
[383553005,1756989046709,-480.0,0.00013698,2]
[383553006,1756989046719,-480.0,0.00013698,2]
[383553008,1756989046728,-480.0,0.00013698,2]
[383553010,1756989046740,-480.0,0.00013698,2]
[383553013,1756989046750,-480.0,0.00013698,2]
[383553015,1756989046759,-480.0,0.00013698,2]
[383553016,1756989046768,-480.0,0.00013698,2]
[383553018,1756989046778,-480.0,0.00013698,2]
[383553020,1756989046787,-480.0,0.00013698,2]
[383553022,1756989046798,-480.0,0.00013698,2]
[383553024,1756989046807,-480.0,0.00013698,2]
[383553026,1756989046817,-480.0,0.00013698,2]
[383553028,1756989046826,-480.0,0.00013698,2]
[383553030,1756989046836,-1000.0,0.00013698,2]
[383553032,1756989046845,-513.59555312,0.00013698,2]
[383554049,1756989082176,304.85681,0.0001281,2]
[383554052,1756989260786,1200.0,0.00013424,2]
[383554053,1756989284673,1200.0,0.00013424,2]
[383554055,1756989309596,1200.0,0.00013424,2]
[383554056,1756989334460,1200.0,0.00013424,2]